fUST/lending_fUST_20240705
["ID","MTS","AMOUNT","RATE_DAILY","PERIOD"]
[331161525,1720111856924,-1530.62,0.00014794,2]
[331161526,1720111856934,-547.01,0.00014794,2]
[331161527,1720111856945,-500.0,0.00014794,2]
[331161528,1720111856957,-500.0,0.00014794,2]
[331161529,1720111856968,-500.0,0.00014794,2]
[331161530,1720111856978,-1040.2,0.00014794,2]
[331161531,1720111856987,-500.0,0.00014794,2]
[331161532,1720111856998,-151.0,0.00014794,2]
[331161533,1720111857007,-500.0,0.00014794,2]
[331161534,1720111857017,-1128.2,0.00014794,2]
[331161535,1720111857027,-12654.94,0.00014794,2]
[331161536,1720111857037,-151.0,0.00014794,2]
[331161537,1720111857048,-500.0,0.00014794,2]
[331161538,1720111857058,-1107.55,0.00014794,2]
[331161539,1720111857070,-432.23497326,0.00014794,2]
[331161540,1720111857080,-500.0,0.00014794,2]
[331161541,1720111857090,-648.64,0.00014794,2]
[331161542,1720111857100,-820.84,0.00014794,2]
[331161543,1720111857110,-223.64722305,0.00014794,2]
[331161544,1720111857122,-500.0,0.00014794,2]
[331161545,1720111857131,-730.93,0.00014794,2]
[331161546,1720111857140,-500.0,0.00014794,2]
[331161547,1720111857150,-500.0,0.00014794,2]
[331161548,1720111857159,-500.0,0.00014794,2]
[331161549,1720111857169,-500.0,0.00014794,2]
[331161550,1720111857178,-551.19,0.00014794,2]
[331161551,1720111857187,-500.0,0.00014794,2]
[331161552,1720111857196,-1712.0,0.00014794,2]
[331161553,1720111857205,-500.0,0.00014794,2]
[331161554,1720111857214,-737.52,0.00014794,2]
[331161555,1720111857224,-500.0,0.00014794,2]
[331161556,1720111857233,-3301.17,0.00014794,2]
[331161557,1720111857242,-500.0,0.00014794,2]
[331161558,1720111857254,-909.9,0.00014794,2]
[331161559,1720111857263,-500.0,0.00014794,2]
[331161560,1720111857272,-500.0,0.00014794,2]
[331161561,1720111857282,-151.0,0.00014794,2]
[331161562,1720111857291,-1255.282729,0.00014794,2]
[331161563,1720111857301,-500.0,0.00014794,2]
[331161564,1720111857310,-500.0,0.00014794,2]
[331161565,1720111857319,-790.85,0.00014794,2]
[331161566,1720111857328,-500.0,0.00014794,2]
[331161567,1720111857337,-1255.282729,0.00014794,2]
[331161568,1720111857346,-4226.55,0.00014794,2]
[331161569,1720111857355,-1110.946963,0.00014794,2]
[331161570,1720111857366,-1373.4,0.00014794,2]
[331161571,1720111857377,-1110.946963,0.00014794,2]
[331161572,1720111857386,-2265.01,0.00014794,2]
[331161573,1720111857395,-500.0,0.00014794,2]
[331161574,1720111857405,-380.045789,0.00014794,2]
[331161575,1720111857414,-500.0,0.00014794,2]
[331161576,1720111857423,-380.045789,0.00014794,2]
[331161577,1720111857432,-610.89,0.00014794,2]
[331161578,1720111857441,-507.71993396,0.00014794,2]
[331161579,1720111857450,-500.0,0.00014794,2]
[331161580,1720111857459,-500.0,0.00014794,2]
[331161581,1720111857468,-500.0,0.00014794,2]
[331161582,1720111857478,-500.0,0.00014794,2]
[331161583,1720111857486,-500.0,0.00014794,2]
[331161584,1720111857498,-436.49635746,0.00014794,2]
[331161585,1720111857507,-1703.24,0.00014794,2]
[331161586,1720111857515,-1501.58,0.00014794,2]
[331161587,1720111857525,-151.0,0.00014794,2]
[331161588,1720111857535,-500.0,0.00014794,2]
[331161589,1720111857544,-500.0,0.00014794,2]
[331161590,1720111857553,-151.0,0.00014794,2]
[331161591,1720111857562,-160.383867,0.00014794,2]
[331161592,1720111857571,-500.0,0.00014794,2]
[331161593,1720111857579,-160.383867,0.00014794,2]
[331161594,1720111857589,-7558.61,0.00014794,2]
[331161595,1720111857598,-500.0,0.00014794,2]
[331161596,1720111857607,-151.0,0.00014794,2]
[331161597,1720111857616,-500.0,0.00014794,2]
[331161598,1720111857625,-151.0,0.00014794,2]
[331161599,1720111857634,-151.0,0.00014794,2]
[331161600,1720111857643,-500.0,0.00014794,2]
[331161601,1720111857651,-151.0,0.00014794,2]
[331161602,1720111857660,-151.0,0.00014794,2]
[331161603,1720111857670,-151.0,0.00014794,2]
[331161604,1720111857679,-628.13,0.00014794,2]
[331161605,1720111857688,-1442.91,0.00014794,2]
[331161606,1720111857697,-500.0,0.00014794,2]
[331161607,1720111857707,-503.19946116,0.00014794,2]
[331161608,1720111857716,-580.16,0.00014794,2]
[331161609,1720111857724,-1175.56,0.00014794,2]
[331161610,1720111857734,-500.0,0.00014794,2]
[331161611,1720111857745,-904.07,0.00014794,2]
[331161612,1720111857758,-500.0,0.00014794,2]
[331161613,1720111857770,-508.96081698,0.00014794,2]
[331161614,1720111857778,-500.0,0.00014794,2]
[331161615,1720111857787,-500.0,0.00014794,2]
[331161616,1720111857795,-500.0,0.00014794,2]
[331161617,1720111857807,-4335.35,0.00014794,2]
[331161618,1720111857816,-2573.145769,0.00014794,2]
[331161619,1720111857826,-2573.145769,0.00014794,2]
[331161620,1720111857836,-3421.741012,0.00014794,2]
[331161621,1720111857845,-500.0,0.00014794,2]
[331161622,1720111857854,-3421.741012,0.00014794,2]
[331161623,1720111857863,-500.0,0.00014794,2]
[331161624,1720111857872,-3421.741012,0.00014794,2]
[331161625,1720111857882,-2573.145769,0.00014794,2]
[331161626,1720111857892,-3421.741012,0.00014794,2]
[331161627,1720111857901,-2573.145769,0.00014794,2]
[331161628,1720111857910,-500.0,0.00014794,2]
[331161629,1720111857919,-345.803772,0.00014794,2]
[331161630,1720111857929,-534.88,0.00014794,2]
[331161631,1720111857938,-345.803772,0.00014794,2]
[331161632,1720111857947,-500.0,0.00014794,2]
[331161633,1720111857956,-500.0,0.00014794,2]
[331161634,1720111857965,-345.803772,0.00014794,2]
[331161635,1720111857974,-345.803772,0.00014794,2]
[331161636,1720111857983,-500.0,0.00014794,2]
[331161637,1720111857994,-500.0,0.00014794,2]
[331161638,1720111858007,-27744.77,0.00014794,2]
[331161639,1720111858016,-500.0,0.00014794,2]
[331161640,1720111858025,-500.0,0.00014794,2]
[331161641,1720111858034,-8032.402223,0.00014794,2]
[331161642,1720111858044,-624.93612042,0.00014794,2]
[331161643,1720111858053,-8032.402223,0.00014794,2]
[331161644,1720111858062,-500.0,0.00014794,2]
[331161645,1720111858071,-8032.402223,0.00014794,2]
[331161646,1720111858080,-8032.402223,0.00014794,2]
[331161647,1720111858090,-500.0,0.00014794,2]
[331161648,1720111858099,-553.82,0.00014794,2]
[331161649,1720111858113,-897.098697,0.00014794,2]
[331161650,1720111858122,-897.098697,0.00014794,2]
[331161651,1720111858131,-676.174698,0.00014794,2]
[331161652,1720111858140,-676.174698,0.00014794,2]
[331161653,1720111858149,-897.098697,0.00014794,2]
[331161654,1720111858158,-897.098697,0.00014794,2]
[331161655,1720111858167,-500.0,0.00014794,2]
[331161656,1720111858177,-676.174698,0.00014794,2]
[331161657,1720111858186,-676.174698,0.00014794,2]
[331161658,1720111858195,-500.0,0.00014794,2]
[331161659,1720111858204,-2916.21,0.00014794,2]
[331161660,1720111858213,-500.0,0.00014794,2]
[331161661,1720111858223,-500.0,0.00014794,2]
[331161662,1720111858233,-1759.87,0.00014794,2]
[331161663,1720111858244,-500.0,0.00014794,2]
[331161664,1720111858253,-500.0,0.00014794,2]
[331161665,1720111858262,-1048.66,0.00014794,2]
[331161666,1720111858271,-500.0,0.00014794,2]
[331161667,1720111858281,-4910.82,0.00014794,2]
[331161668,1720111858290,-500.0,0.00014794,2]
[331161669,1720111858300,-1929.35,0.00014794,2]
[331161670,1720111858309,-500.0,0.00014794,2]
[331161671,1720111858318,-8786.94,0.00014794,2]
[331161672,1720111858328,-500.0,0.00014794,2]
[331161673,1720111858337,-500.0,0.00014794,2]
[331161674,1720111858346,-500.0,0.00014794,2]
[331161675,1720111858356,-2141.918123,0.00014794,2]
[331161676,1720111858365,-2141.918123,0.00014794,2]
[331161677,1720111858374,-7776.49,0.00014794,2]
[331161678,1720111858383,-500.0,0.00014794,2]
[331161679,1720111858393,-2141.918123,0.00014794,2]
[331161680,1720111858402,-2141.918123,0.00014794,2]
[331161681,1720111858507,-300.0,0.00014868,2]
[331161682,1720111858518,-262.855374,0.00014898,2]
[331161683,1720111858528,-262.855374,0.00014898,2]
[331161684,1720111858537,-151.0,0.00014898,2]
[331161685,1720111858546,-976.087188,0.00014898,2]
[331161686,1720111858555,-976.087188,0.00014898,2]
[331161687,1720111858564,-153.0,0.00014961,2]
[331161688,1720111858573,-153.0,0.00014961,2]
[331161689,1720111858582,-153.0,0.00014961,2]
[331161690,1720111858591,-405.7629673,0.00014961,2]
[331161691,1720111858600,-300.0,0.00014967,2]
[331161692,1720111858609,-300.0,0.00014984,2]
[331161693,1720111858618,-6022.60907532,0.00014998,2]
[331161694,1720111858627,-6076.9012323,0.00014998,2]
[331161695,1720111858635,-1330.495095,0.00014998,2]
[331161696,1720111858644,-1330.495095,0.00014998,2]
[331161697,1720111858653,-151.0,0.00014998,2]
[331161698,1720111858662,-151.0,0.00014998,2]
[331161699,1720111858671,-11029.28750384,0.00014998,2]
[331161700,1720111858680,-2132.45671248,0.00014999,2]
[331161701,1720111858689,-4710.72024946,0.00014999,2]
[331161702,1720111858698,-1434.44237247,0.00014999,2]
[331161703,1720111858707,-2118.3618334,0.00014999,2]
[331161704,1720111858716,-3078.51196359,0.00014999,2]
[331161705,1720111858726,-2808.63024156,0.00014999,2]
[331161706,1720111858735,-1916.29526789,0.00014999,2]
[331161707,1720111858745,-2126.43441341,0.00014999,2]
[331161708,1720111858756,-1500.0,0.00014999,2]
[331161709,1720111858767,-1634.59229075,0.00014999,2]
[331161710,1720111858777,-789.77698638,0.00014999,2]
[331161711,1720111858786,-158.59027,0.00014999,2]
[331161712,1720111858795,-206.449793,0.00014999,2]
[331161713,1720111858804,-206.449793,0.00014999,2]
[331161714,1720111858813,-151.0,0.00014999,2]
[331161715,1720111858823,-295.93351,0.00014999,2]
[331161716,1720111858832,-267.882435,0.00014999,2]
[331161717,1720111858843,-1255.282729,0.00014999,2]
[331161718,1720111858853,-1255.282729,0.00014999,2]
[331161719,1720111858862,-1110.946963,0.00014999,2]
[331161720,1720111858871,-1110.946963,0.00014999,2]
[331161721,1720111858880,-380.045789,0.00014999,2]
[331161722,1720111858890,-380.045789,0.00014999,2]
[331161723,1720111858899,-151.0,0.00014999,2]
[331161724,1720111858909,-151.0,0.00014999,2]
[331161725,1720111858918,-160.383867,0.00014999,2]
[331161726,1720111858927,-160.383867,0.00014999,2]
[331161727,1720111858937,-151.0,0.00014999,2]
[331161728,1720111858947,-151.0,0.00014999,2]
[331161729,1720111858956,-395.4705443,0.00015,2]
[331161730,1720111858965,-948.84245203,0.00015,2]
[331161731,1720111858975,-1800.0,0.00015,2]
[331161732,1720111858984,-2420.55776569,0.00015,2]
[331161733,1720111858994,-808.0087546,0.00015,2]
[331161734,1720111859005,-758.295842,0.00015,2]
[331161735,1720111859015,-2832.46914027,0.00015,2]
[331161736,1720111859026,-1039.06688618,0.00015,2]
[331161737,1720111859035,-1081.06,0.00015,2]
[331161738,1720111859045,-309.5721694,0.00015036,2]
[331161739,1720111859054,-150.0,0.00015059,2]
[331161740,1720111859063,-150.0,0.00015059,2]
[331161741,1720111859073,-154.91479686,0.00015068,2]
[331161742,1720111859082,-1206.24,0.00015068,2]
[331161743,1720111859091,-962.97,0.00015068,2]
[331161744,1720111859100,-500.0,0.00015068,2]
[331161745,1720111859110,-846.17,0.00015068,2]
[331161746,1720111859119,-722.55,0.00015068,2]
[331161747,1720111859128,-500.0,0.00015068,2]
[331161748,1720111859137,-1088.19,0.00015068,2]
[331161749,1720111859147,-500.0,0.00015068,2]
[331161750,1720111859156,-155.552447,0.00015068,2]
[331161751,1720111859165,-173.4390236,0.00015068,2]
[331161752,1720111859175,-500.0,0.00015068,2]
[331161753,1720111859184,-8296.52,0.00015068,2]
[331161754,1720111859193,-282.18111528,0.00015068,2]
[331161755,1720111859203,-500.0,0.00015068,2]
[331161756,1720111859213,-94.01312384,0.00015068,2]
[331161757,1720111859394,-3670.83687616,0.00015068,2]
[331161758,1720111859403,-500.0,0.00015068,2]
[331161759,1720111859414,-500.0,0.00015068,2]
[331161760,1720111859423,-500.0,0.00015068,2]
[331161761,1720111859432,-508.58408897,0.00015068,2]
[331161762,1720111859441,-691.65,0.00015068,2]
[331161763,1720111859451,-401.37770729,0.00015068,2]
[331161764,1720111859460,-500.0,0.00015068,2]
[331161765,1720111859469,-500.0,0.00015068,2]
[331161766,1720111859478,-500.0,0.00015068,2]
[331161767,1720111859488,-1611.17,0.00015068,2]
[331161768,1720111859497,-599.7,0.00015068,2]
[331161769,1720111859507,-500.0,0.00015068,2]
[331161770,1720111859516,-500.0,0.00015068,2]
[331161771,1720111859525,-434.13915917,0.00015068,2]
[331161772,1720111859535,-541.95,0.00015068,2]
[331161773,1720111859543,-500.0,0.00015068,2]
[331161774,1720111859552,-500.0,0.00015068,2]
[331161775,1720111859561,-500.0,0.00015068,2]
[331161776,1720111859570,-500.0,0.00015068,2]
[331161777,1720111859580,-500.0,0.00015068,2]
[331161778,1720111859589,-2198.82,0.00015068,2]
[331161779,1720111859598,-161.11108,0.00015068,2]
[331161780,1720111859607,-500.0,0.00015068,2]
[331161781,1720111859617,-1018.96,0.00015068,2]
[331161782,1720111859626,-500.0,0.00015068,2]
[331161783,1720111859635,-500.0,0.00015068,2]
[331161784,1720111859645,-500.0,0.00015068,2]
[331161785,1720111859655,-152.324096,0.00015068,2]
[331161786,1720111859665,-781.13,0.00015068,2]
[331161787,1720111859674,-1122.93,0.00015068,2]
[331161788,1720111859683,-500.0,0.00015068,2]
[331161789,1720111859693,-151.0,0.00015068,2]
[331161790,1720111859702,-500.0,0.00015068,2]
[331161791,1720111859711,-500.0,0.00015068,2]
[331161792,1720111859721,-289.4117508,0.00015068,2]
[331161793,1720111859730,-500.0,0.00015068,2]
[331161794,1720111859739,-500.0,0.00015068,2]
[331161795,1720111859749,-500.0,0.00015068,2]
[331161796,1720111859760,-151.0,0.00015068,2]
[331161797,1720111859770,-1330.495095,0.00015068,2]
[331161798,1720111859783,-1564.47,0.00015068,2]
[331161799,1720111859792,-634.17,0.00015068,2]
[331161800,1720111859801,-1330.495095,0.00015068,2]
[331161801,1720111859811,-2030.75,0.00015068,2]
[331161802,1720111859822,-500.0,0.00015068,2]
[331161803,1720111859832,-151.0,0.00015068,2]
[331161804,1720111859841,-500.0,0.00015068,2]
[331161805,1720111859851,-500.0,0.00015068,2]
[331161806,1720111859860,-151.0,0.00015068,2]
[331161807,1720111859870,-577.87447147,0.00015068,2]
[331161808,1720111859879,-151.0,0.00015068,2]
[331161809,1720111859888,-500.0,0.00015068,2]
[331161810,1720111859898,-500.0,0.00015068,2]
[331161811,1720111859907,-500.0,0.00015068,2]
[331161812,1720111859917,-12363.61,0.00015068,2]
[331161813,1720111859926,-500.0,0.00015068,2]
[331161814,1720111859935,-500.0,0.00015068,2]
[331161815,1720111859946,-500.0,0.00015068,2]
[331161816,1720111859955,-500.0,0.00015068,2]
[331161817,1720111859965,-500.0,0.00015068,2]
[331161818,1720111859974,-1157.56,0.00015068,2]
[331161819,1720111859983,-1042.28,0.00015068,2]
[331161820,1720111859993,-742.0,0.00015068,2]
[331161821,1720111860007,-262.855374,0.00015068,2]
[331161822,1720111860017,-625.22,0.00015068,2]
[331161823,1720111860026,-500.0,0.00015068,2]
[331161824,1720111860035,-262.855374,0.00015068,2]
[331161825,1720111860044,-500.0,0.00015068,2]
[331161826,1720111860053,-1044.22,0.00015068,2]
[331161827,1720111860062,-500.0,0.00015068,2]
[331161828,1720111860071,-151.0,0.00015068,2]
[331161829,1720111860080,-1077.61,0.00015068,2]
[331161830,1720111860090,-500.0,0.00015068,2]
[331161831,1720111860099,-500.0,0.00015068,2]
[331161832,1720111860108,-264.56470202,0.00015068,2]
[331161833,1720111860117,-500.0,0.00015068,2]
[331161834,1720111860126,-500.0,0.00015068,2]
[331161835,1720111860135,-500.0,0.00015068,2]
[331161836,1720111860144,-500.0,0.00015068,2]
[331161837,1720111860153,-500.0,0.00015068,2]
[331161838,1720111860161,-500.0,0.00015068,2]
[331161839,1720111860170,-500.0,0.00015068,2]
[331161840,1720111860179,-976.087188,0.00015068,2]
[331161841,1720111860188,-500.0,0.00015068,2]
[331161842,1720111860198,-976.087188,0.00015068,2]
[331161843,1720111860207,-500.0,0.00015068,2]
[331161844,1720111860216,-500.0,0.00015068,2]
[331161845,1720111860225,-1530.62,0.00015068,2]
[331161846,1720111860234,-547.01,0.00015068,2]
[331161847,1720111860243,-205.52,0.00015068,2]
[331161848,1720111860253,-500.0,0.00015068,2]
[331161849,1720111860263,-500.0,0.00015068,2]
[331161850,1720111860272,-1040.2,0.00015068,2]
[331161851,1720111860282,-500.0,0.00015068,2]
[331161852,1720111860291,-151.0,0.00015068,2]
[331161853,1720111860300,-500.0,0.00015068,2]
[331161854,1720111860310,-1128.2,0.00015068,2]
[331161855,1720111860319,-12654.94,0.00015068,2]
[331161856,1720111860329,-500.0,0.00015068,2]
[331161857,1720111860338,-1107.55,0.00015068,2]
[331161858,1720111860347,-500.0,0.00015068,2]
[331161859,1720111860356,-820.84,0.00015068,2]
[331161860,1720111860366,-500.0,0.00015068,2]
[331161861,1720111860375,-730.93,0.00015068,2]
[331161862,1720111860385,-500.0,0.00015068,2]
[331161863,1720111860394,-500.0,0.00015068,2]
[331161864,1720111860404,-500.0,0.00015068,2]
[331161865,1720111860414,-545.39864632,0.00015068,2]
[331161866,1720111860423,-551.19,0.00015068,2]
[331161867,1720111860433,-500.0,0.00015068,2]
[331161868,1720111860538,-1712.0,0.00015068,2]
[331161869,1720111860550,-500.0,0.00015068,2]
[331161870,1720111860560,-737.52,0.00015068,2]
[331161871,1720111860569,-500.0,0.00015068,2]
[331161872,1720111860580,-3301.17,0.00015068,2]
[331161873,1720111860589,-500.0,0.00015068,2]
[331161874,1720111860599,-909.9,0.00015068,2]
[331161875,1720111860608,-500.0,0.00015068,2]
[331161876,1720111860617,-500.0,0.00015068,2]
[331161877,1720111860626,-1255.282729,0.00015068,2]
[331161878,1720111860635,-500.0,0.00015068,2]
[331161879,1720111860644,-500.0,0.00015068,2]
[331161880,1720111860654,-790.85,0.00015068,2]
[331161881,1720111860663,-500.0,0.00015068,2]
[331161882,1720111860672,-4226.55,0.00015068,2]
[331161883,1720111860681,-1255.282729,0.00015068,2]
[331161884,1720111860691,-1110.946963,0.00015068,2]
[331161885,1720111860700,-1373.4,0.00015068,2]
[331161886,1720111860709,-2265.01,0.00015068,2]
[331161887,1720111860719,-1110.946963,0.00015068,2]
[331161888,1720111860728,-500.0,0.00015068,2]
[331161889,1720111860738,-380.045789,0.00015068,2]
[331161890,1720111860748,-500.0,0.00015068,2]
[331161891,1720111860761,-380.045789,0.00015068,2]
[331161892,1720111860771,-610.89,0.00015068,2]
[331161893,1720111860780,-500.0,0.00015068,2]
[331161894,1720111860790,-500.0,0.00015068,2]
[331161895,1720111860800,-500.0,0.00015068,2]
[331161896,1720111860809,-500.0,0.00015068,2]
[331161897,1720111860819,-500.0,0.00015068,2]
[331161898,1720111860828,-1703.24,0.00015068,2]
[331161899,1720111860838,-1501.58,0.00015068,2]
[331161900,1720111860849,-151.0,0.00015068,2]
[331161901,1720111860859,-500.0,0.00015068,2]
[331161902,1720111860868,-500.0,0.00015068,2]
[331161903,1720111860878,-263.490174,0.00015068,2]
[331161904,1720111860887,-500.0,0.00015068,2]
[331161905,1720111860897,-160.383867,0.00015068,2]
[331161906,1720111860906,-160.383867,0.00015068,2]
[331161907,1720111860915,-7558.61,0.00015068,2]
[331161908,1720111860925,-500.0,0.00015068,2]
[331161909,1720111860935,-151.0,0.00015068,2]
[331161910,1720111860944,-500.0,0.00015068,2]
[331161911,1720111860953,-151.0,0.00015068,2]
[331161912,1720111860963,-500.0,0.00015068,2]
[331161913,1720111860971,-151.0,0.00015068,2]
[331161914,1720111860981,-151.0,0.00015068,2]
[331161915,1720111860990,-628.13,0.00015068,2]
[331161916,1720111861001,-1442.91,0.00015068,2]
[331161917,1720111861010,-500.0,0.00015068,2]
[331161918,1720111861019,-580.16,0.00015068,2]
[331161919,1720111861028,-1175.56,0.00015068,2]
[331161920,1720111861038,-500.0,0.00015068,2]
[331161921,1720111861048,-904.07,0.00015068,2]
[331161922,1720111861058,-500.0,0.00015068,2]
[331161923,1720111861067,-500.0,0.00015068,2]
[331161924,1720111861077,-506.81045856,0.00015068,2]
[331161925,1720111861087,-500.0,0.00015068,2]
[331161926,1720111861096,-4335.35,0.00015068,2]
[331161927,1720111861105,-2573.145769,0.00015068,2]
[331161928,1720111861115,-3421.741012,0.00015068,2]
[331161929,1720111861124,-500.0,0.00015068,2]
[331161930,1720111861134,-3421.741012,0.00015068,2]
[331161931,1720111861143,-2573.145769,0.00015068,2]
[331161932,1720111861153,-500.0,0.00015068,2]
[331161933,1720111861162,-534.88,0.00015068,2]
[331161934,1720111861172,-345.803772,0.00015068,2]
[331161935,1720111861182,-500.0,0.00015068,2]
[331161936,1720111861192,-500.0,0.00015068,2]
[331161937,1720111861201,-345.803772,0.00015068,2]
[331161938,1720111861211,-500.0,0.00015068,2]
[331161939,1720111861220,-500.0,0.00015068,2]
[331161940,1720111861231,-27744.77,0.00015068,2]
[331161941,1720111861240,-500.0,0.00015068,2]
[331161942,1720111861252,-500.0,0.00015068,2]
[331161943,1720111861262,-8032.402223,0.00015068,2]
[331161944,1720111861271,-500.0,0.00015068,2]
[331161945,1720111861282,-8032.402223,0.00015068,2]
[331161946,1720111861291,-500.0,0.00015068,2]
[331161947,1720111861301,-553.82,0.00015068,2]
[331161948,1720111861310,-897.098697,0.00015068,2]
[331161949,1720111861320,-676.174698,0.00015068,2]
[331161950,1720111861330,-897.098697,0.00015068,2]
[331161951,1720111861339,-500.0,0.00015068,2]
[331161952,1720111861349,-676.174698,0.00015068,2]
[331161953,1720111861359,-500.0,0.00015068,2]
[331161954,1720111861368,-2916.21,0.00015068,2]
[331161955,1720111861378,-500.0,0.00015068,2]
[331161956,1720111861386,-500.0,0.00015068,2]
[331161957,1720111861396,-500.0,0.00015068,2]
[331161958,1720111861405,-1759.87,0.00015068,2]
[331161959,1720111861414,-500.0,0.00015068,2]
[331161960,1720111861424,-291.73813027,0.00015068,2]
[331161961,1720111861434,-1048.66,0.00015068,2]
[331161962,1720111861443,-4910.82,0.00015068,2]
[331161963,1720111861452,-500.0,0.00015068,2]
[331161964,1720111861462,-1929.35,0.00015068,2]
[331161965,1720111861471,-500.0,0.00015068,2]
[331161966,1720111861481,-8786.94,0.00015068,2]
[331161967,1720111861490,-500.0,0.00015068,2]
[331161968,1720111861503,-500.0,0.00015068,2]
[331161969,1720111861512,-2141.918123,0.00015068,2]
[331161970,1720111861522,-500.0,0.00015068,2]
[331161971,1720111861531,-7776.49,0.00015068,2]
[331161972,1720111861540,-2141.918123,0.00015068,2]
[331161973,1720111861549,-182.37291187,0.00015222,2]
[331161974,1720111861559,-150.0,0.00015222,2]
[331161975,1720111861568,-150.150799,0.00015337,2]
[331161976,1720111861576,-181.999938,0.00015337,2]
[331161977,1720111861585,-186.463684,0.00015337,2]
[331161978,1720111861594,-717.661451,0.00015337,2]
[331161979,1720111861603,-644.177273,0.00015337,2]
[331161980,1720111861613,-904.276521,0.00015337,2]
[331161981,1720111861622,-152.590037,0.00015337,2]
[331161982,1720111861632,-2121.612039,0.00015337,2]
[331161983,1720111861641,-2526.214493,0.00015337,2]
[331161984,1720111861651,-152.476222,0.00015337,2]
[331161985,1720111861660,-738.717383,0.00015337,2]
[331161986,1720111861669,-1206.24,0.00015342,2]
[331161987,1720111861679,-962.97,0.00015342,2]
[331161988,1720111861687,-160.276731,0.00015342,2]
[331161989,1720111861696,-500.0,0.00015342,2]
[331161990,1720111861706,-846.17,0.00015342,2]
[331161991,1720111861715,-722.55,0.00015342,2]
[331161992,1720111861724,-500.0,0.00015342,2]
[331161993,1720111861734,-1088.19,0.00015342,2]
[331161994,1720111861743,-500.0,0.00015342,2]
[331161995,1720111861757,-500.0,0.00015342,2]
[331161996,1720111861765,-6252.5565781,0.00015342,2]
[331161997,1720111861784,-2043.9634219,0.00015342,2]
[331161998,1720111861794,-500.0,0.00015342,2]
[331161999,1720111861803,-3764.85,0.00015342,2]
[331162000,1720111861812,-274.74968666,0.00015342,2]
[331162001,1720111862013,-500.0,0.00013698,2]
[331162002,1720111862023,-500.0,0.00013698,2]
[331162003,1720111862032,-500.0,0.00013698,2]
[331162004,1720111862042,-500.0,0.00013698,2]
[331162005,1720111862051,-500.0,0.00013698,2]
[331162006,1720111862061,-569.34078924,0.00013972,2]
[331162007,1720111862070,-500.0,0.00013972,2]
[331162008,1720111862080,-588.15921077,0.00014246,2]
[331162009,1720111862092,-578.31859123,0.00014246,2]
[331162010,1720111862101,-1166.477802,0.00014246,2]
[331162011,1720111862111,-500.0,0.00014246,2]
[331162012,1720111862121,-1166.477802,0.0001452,2]
[331162013,1720111862131,-500.0,0.0001452,2]
[331162014,1720111862141,-1166.477802,0.00014794,2]
[331162015,1720111862150,-462.32457837,0.00014794,2]
[331162016,1720111862160,-1166.477802,0.00014794,2]
[331162017,1720111862169,-1166.477802,0.00015068,2]
[331162018,1720111862179,-225.25031334,0.00015342,2]
[331162019,1720111862188,-500.0,0.00015342,2]
[331162020,1720111862198,-500.0,0.00015342,2]
[331162021,1720111862207,-691.65,0.00015342,2]
[331162022,1720111862218,-500.0,0.00015342,2]
[331162023,1720111862228,-500.0,0.00015342,2]
[331162024,1720111862237,-500.0,0.00015342,2]